[Event "Early-Titled-Tuesday-Blitz-July-09-2024"]
[Site "Chess.com"]
[Date "2024.07.09"]
[Round "9"]
[White "Beca95"]
[Black "Jakhongir-Vakhidov"]
[Result "1-0"]
[WhiteElo "3011"]
[BlackElo "3024"]
[TimeControl "180+1"]
[EndTime "9:45:55 PDT"]
[Termination "Beca95 won by resignation"]

1. Nf3 {[%clk 0:02:55.3]} 1... g6 {[%clk 0:02:59.7]} 2. e4 {[%clk 0:02:54.5]}
2... c5 {[%clk 0:02:59.4]} 3. c3 {[%clk 0:02:54.7]} 3... d5 {[%clk 0:02:59.5]}
4. e5 {[%clk 0:02:55.1]} 4... Bg4 {[%clk 0:02:58.6]} 5. Bb5+ {[%clk 0:02:55]}
5... Nc6 {[%clk 0:02:59]} 6. h3 {[%clk 0:02:55]} 6... Bxf3 {[%clk 0:02:57.6]} 7.
Bxc6+ {[%clk 0:02:55]} 7... bxc6 {[%clk 0:02:57]} 8. Qxf3 {[%clk 0:02:54.7]}
8... Bg7 {[%clk 0:02:57.3]} 9. Qe2 {[%clk 0:02:51.7]} 9... f6 {[%clk 0:02:50.2]}
10. e6 {[%clk 0:02:46.8]} 10... f5 {[%clk 0:02:47.8]} 11. O-O {[%clk 0:02:46.7]}
11... Nf6 {[%clk 0:02:47.8]} 12. d3 {[%clk 0:02:47]} 12... O-O {[%clk 0:02:48]}
13. Nd2 {[%clk 0:02:44.9]} 13... Qd6 {[%clk 0:02:28.9]} 14. Re1 {[%clk
0:02:44.2]} 14... c4 {[%clk 0:02:25.7]} 15. dxc4 {[%clk 0:02:43.8]} 15... Ne4
{[%clk 0:02:26.1]} 16. f3 {[%clk 0:02:05]} 16... Ng3 {[%clk 0:02:18]} 17. Qf2
{[%clk 0:02:01]} 17... Nh5 {[%clk 0:02:18.2]} 18. c5 {[%clk 0:01:58.9]} 18...
Qc7 {[%clk 0:02:16.5]} 19. Nb3 {[%clk 0:01:58.3]} 19... Be5 {[%clk 0:02:13.7]}
20. Rxe5 {[%clk 0:01:55.4]} 20... Qxe5 {[%clk 0:02:14.6]} 21. Nd4 {[%clk
0:01:55.5]} 21... Rfc8 {[%clk 0:01:57.2]} 22. Bg5 {[%clk 0:01:52.4]} 22... Kf8
{[%clk 0:01:44.6]} 23. Qh4 {[%clk 0:01:50.5]} 23... Qg7 {[%clk 0:01:34]} 24. g4
{[%clk 0:01:31.8]} 24... h6 {[%clk 0:01:34.1]} 25. Bd2 {[%clk 0:01:29.4]} 25...
Rab8 {[%clk 0:01:21.5]} 26. b3 {[%clk 0:01:15.6]} 26... f4 {[%clk 0:00:36.8]}
27. gxh5 {[%clk 0:01:12.6]} 27... g5 {[%clk 0:00:37.2]} 28. Qg4 {[%clk
0:01:11.3]} 28... Kg8 {[%clk 0:00:33.4]} 29. Qf5 {[%clk 0:01:10.8]} 29... Rf8
{[%clk 0:00:30.3]} 30. Qd3 {[%clk 0:01:10.5]} 30... Rbc8 {[%clk 0:00:27.5]} 31.
b4 {[%clk 0:01:09.8]} 31... Rf6 {[%clk 0:00:23.5]} 32. a4 {[%clk 0:01:09.3]}
32... Qf8 {[%clk 0:00:23.8]} 33. b5 {[%clk 0:01:02]} 33... cxb5 {[%clk
0:00:20.6]} 34. axb5 {[%clk 0:01:02.1]} 34... Rxc5 {[%clk 0:00:21.1]} 35. Rxa7
{[%clk 0:01:01.9]} 35... Qe8 {[%clk 0:00:20.4]} 36. b6 {[%clk 0:00:54.9]} 36...
Rc8 {[%clk 0:00:14.7]} 37. b7 {[%clk 0:00:51]} 37... Rb8 {[%clk 0:00:14.9]} 38.
Qa6 {[%clk 0:00:39.6]} 38... Qxh5 {[%clk 0:00:15]} 39. Ra8 {[%clk 0:00:36.8]}
39... Rff8 {[%clk 0:00:15.5]} 40. Rxb8 {[%clk 0:00:24.1]} 40... Rxb8 {[%clk
0:00:16.4]} 41. Qa7 {[%clk 0:00:24.3]} 41... Qxh3 {[%clk 0:00:09.5]} 42. Qxb8+
{[%clk 0:00:23.9]} 42... Kh7 {[%clk 0:00:10.2]} 43. Be1 {[%clk 0:00:23.7]} 1-0

[Event "Early-Titled-Tuesday-Blitz-July-09-2024"]
[Site "Chess.com"]
[Date "2024.07.09"]
[Round "9"]
[White "mapleaff"]
[Black "jbking07"]
[Result "1-0"]
[WhiteElo "2352"]
[BlackElo "2443"]
[TimeControl "180+1"]
[EndTime "9:45:55 PDT"]
[Termination "mapleaff won on time"]

1. d4 {[%clk 0:02:53.6]} 1... d5 {[%clk 0:03:00]} 2. Bf4 {[%clk 0:02:54.1]} 2...
Nf6 {[%clk 0:02:59.9]} 3. Nf3 {[%clk 0:02:54.6]} 3... c5 {[%clk 0:02:59.7]} 4.
e3 {[%clk 0:02:54.9]} 4... e6 {[%clk 0:02:59.6]} 5. Nbd2 {[%clk 0:02:55.4]} 5...
Bd6 {[%clk 0:02:59.2]} 6. Bg3 {[%clk 0:02:55.9]} 6... O-O {[%clk 0:02:58]} 7. c3
{[%clk 0:02:54.6]} 7... Qc7 {[%clk 0:02:57.4]} 8. Ne5 {[%clk 0:02:52.6]} 8...
Nbd7 {[%clk 0:02:53.4]} 9. f4 {[%clk 0:02:52.9]} 9... a6 {[%clk 0:02:44.6]} 10.
a4 {[%clk 0:02:51.9]} 10... Rb8 {[%clk 0:02:31.5]} 11. Bd3 {[%clk 0:02:39]}
11... b5 {[%clk 0:02:26.6]} 12. axb5 {[%clk 0:02:39.9]} 12... axb5 {[%clk
0:02:26.5]} 13. O-O {[%clk 0:02:30.9]} 13... b4 {[%clk 0:02:15.6]} 14. Qf3
{[%clk 0:02:19.2]} 14... bxc3 {[%clk 0:01:56.5]} 15. bxc3 {[%clk 0:02:20.1]}
15... g6 {[%clk 0:01:49.5]} 16. Bh4 {[%clk 0:01:43.5]} 16... Nh5 {[%clk
0:01:15.5]} 17. g4 {[%clk 0:01:40]} 17... Ng7 {[%clk 0:01:15.5]} 18. Rac1 {[%clk
0:01:04]} 18... Rb2 {[%clk 0:01:08.2]} 19. Rc2 {[%clk 0:01:00.6]} 19... Rxc2
{[%clk 0:01:04]} 20. Bxc2 {[%clk 0:01:01.5]} 20... cxd4 {[%clk 0:01:00.7]} 21.
exd4 {[%clk 0:01:02.4]} 21... Ba6 {[%clk 0:00:57.4]} 22. Ra1 {[%clk 0:00:49.6]}
22... Bb5 {[%clk 0:00:54.7]} 23. Rb1 {[%clk 0:00:46.8]} 23... Ba6 {[%clk
0:00:38.9]} 24. Bg5 {[%clk 0:00:30.1]} 24... Rc8 {[%clk 0:00:23.6]} 25. Rb3
{[%clk 0:00:28.7]} 25... Bc4 {[%clk 0:00:20.5]} 26. Rb2 {[%clk 0:00:19.8]} 26...
Nxe5 {[%clk 0:00:13.6]} 27. fxe5 {[%clk 0:00:19.5]} 27... Be7 {[%clk 0:00:13.7]}
28. Bxe7 {[%clk 0:00:15.5]} 28... Qxe7 {[%clk 0:00:13.5]} 29. Nxc4 {[%clk
0:00:16.1]} 29... dxc4 {[%clk 0:00:11]} 30. Rb7 {[%clk 0:00:15]} 30... Qe8
{[%clk 0:00:08.4]} 31. Ba4 {[%clk 0:00:15.3]} 31... Qf8 {[%clk 0:00:05.8]} 32.
h4 {[%clk 0:00:11.3]} 32... h5 {[%clk 0:00:05.5]} 33. gxh5 {[%clk 0:00:09.1]}
33... Nxh5 {[%clk 0:00:05.4]} 34. Bd1 {[%clk 0:00:09.5]} 34... Ng7 {[%clk
0:00:04.7]} 35. Qf6 {[%clk 0:00:09]} 35... Nf5 {[%clk 0:00:02.2]} 36. h5 {[%clk
0:00:07.3]} 36... Qg7 {[%clk 0:00:02.3]} 37. hxg6 {[%clk 0:00:06.1]} 1-0

[Event "Early-Titled-Tuesday-Blitz-July-09-2024"]
[Site "Chess.com"]
[Date "2024.07.09"]
[Round "9"]
[White "Shankland"]
[Black "FoggyMorning"]
[Result "1-0"]
[WhiteElo "2889"]
[BlackElo "2666"]
[TimeControl "180+1"]
[EndTime "9:45:56 PDT"]
[Termination "Shankland won on time"]

1. c4 {[%clk 0:03:00.9]} 1... e5 {[%clk 0:02:59.8]} 2. g3 {[%clk 0:02:58.1]}
2... c6 {[%clk 0:02:59.5]} 3. Nf3 {[%clk 0:02:56.9]} 3... e4 {[%clk 0:02:57.1]}
4. Nd4 {[%clk 0:02:55.5]} 4... Nf6 {[%clk 0:02:57.8]} 5. d3 {[%clk 0:02:53.1]}
5... d5 {[%clk 0:02:56.8]} 6. Bg2 {[%clk 0:02:46]} 6... exd3 {[%clk 0:02:51.6]}
7. cxd5 {[%clk 0:02:45.3]} 7... Nxd5 {[%clk 0:02:45.7]} 8. O-O {[%clk
0:02:44.6]} 8... Be7 {[%clk 0:02:44.8]} 9. Qxd3 {[%clk 0:02:43.4]} 9... O-O
{[%clk 0:02:45.3]} 10. Rd1 {[%clk 0:02:42.6]} 10... Bf6 {[%clk 0:02:32.9]} 11.
Nc3 {[%clk 0:02:17.6]} 11... Nxc3 {[%clk 0:02:29.2]} 12. bxc3 {[%clk 0:02:17]}
12... Re8 {[%clk 0:02:25.4]} 13. Rb1 {[%clk 0:02:13.4]} 13... Qa5 {[%clk
0:02:17]} 14. Qc2 {[%clk 0:02:09.5]} 14... Na6 {[%clk 0:02:04.2]} 15. e4 {[%clk
0:02:00.3]} 15... Nc5 {[%clk 0:01:57.8]} 16. Be3 {[%clk 0:01:46.5]} 16... Bg4
{[%clk 0:01:38.6]} 17. f3 {[%clk 0:01:45.3]} 17... Bd7 {[%clk 0:00:51.7]} 18. f4
{[%clk 0:01:41.4]} 18... Rad8 {[%clk 0:00:45.4]} 19. e5 {[%clk 0:01:41]} 19...
Be7 {[%clk 0:00:46]} 20. h3 {[%clk 0:01:33.5]} 20... Bf8 {[%clk 0:00:45.1]} 21.
Bf2 {[%clk 0:01:32.8]} 21... Bc8 {[%clk 0:00:37]} 22. Kh2 {[%clk 0:01:31.2]}
22... Qa6 {[%clk 0:00:29.2]} 23. Bf1 {[%clk 0:01:28.4]} 23... Qa5 {[%clk
0:00:29.3]} 24. Bc4 {[%clk 0:01:26.8]} 24... Ne6 {[%clk 0:00:25.6]} 25. Nxe6
{[%clk 0:01:17.2]} 25... Bxe6 {[%clk 0:00:26.5]} 26. Bxe6 {[%clk 0:01:15.9]}
26... fxe6 {[%clk 0:00:18.1]} 27. Rxd8 {[%clk 0:01:11.1]} 27... Rxd8 {[%clk
0:00:18]} 28. Rxb7 {[%clk 0:01:11.2]} 28... Bc5 {[%clk 0:00:12]} 29. f5 {[%clk
0:00:24.7]} 29... Bxf2 {[%clk 0:00:06.8]} 30. f6 {[%clk 0:00:23.9]} 30... Qxe5
{[%clk 0:00:02.1]} 31. Rxg7+ {[%clk 0:00:22.9]} 31... Kf8 {[%clk 0:00:02.8]} 32.
Qxf2 {[%clk 0:00:22.6]} 32... Rd3 {[%clk 0:00:01.4]} 33. Rxh7 {[%clk 0:00:20.1]}
33... Re3 {[%clk 0:00:01.2]} 34. f7 {[%clk 0:00:18.7]} 34... Re2 {[%clk
0:00:01.5]} 35. Rh8+ {[%clk 0:00:19]} 35... Qxh8 {[%clk 0:00:01.6]} 36. Qxe2
{[%clk 0:00:19.6]} 36... Kxf7 {[%clk 0:00:02.5]} 37. h4 {[%clk 0:00:19.8]} 37...
Qxc3 {[%clk 0:00:02.7]} 38. Kh3 {[%clk 0:00:18.9]} 38... Qd4 {[%clk 0:00:02.3]}
39. h5 {[%clk 0:00:18.7]} 39... Qd5 {[%clk 0:00:02.4]} 40. g4 {[%clk 0:00:18]}
40... Kg7 {[%clk 0:00:02.6]} 41. Qe3 {[%clk 0:00:17.6]} 41... e5 {[%clk
0:00:02.6]} 42. Qg5+ {[%clk 0:00:17.2]} 42... Kf8 {[%clk 0:00:03.2]} 43. Qf6+
{[%clk 0:00:17.5]} 43... Ke8 {[%clk 0:00:03.5]} 44. h6 {[%clk 0:00:17.9]} 44...
Qd3+ {[%clk 0:00:03]} 45. Kh4 {[%clk 0:00:18.2]} 45... Qd4 {[%clk 0:00:01.5]}
46. h7 {[%clk 0:00:17.1]} 1-0

[Event "Early-Titled-Tuesday-Blitz-July-09-2024"]
[Site "Chess.com"]
[Date "2024.07.09"]
[Round "9"]
[White "Potosino1970"]
[Black "2Coaches1Profile"]
[Result "1/2-1/2"]
[WhiteElo "2710"]
[BlackElo "2603"]
[TimeControl "180+1"]
[EndTime "9:45:56 PDT"]
[Termination "Game drawn by repetition"]

1. e4 {[%clk 0:03:00.9]} 1... Nf6 {[%clk 0:02:58.8]} 2. e5 {[%clk 0:02:59.2]}
2... Nd5 {[%clk 0:02:59]} 3. d4 {[%clk 0:02:58.8]} 3... d6 {[%clk 0:02:58.9]} 4.
Nf3 {[%clk 0:02:59.3]} 4... Nc6 {[%clk 0:02:58.1]} 5. c4 {[%clk 0:02:58.3]} 5...
Nb6 {[%clk 0:02:57.4]} 6. e6 {[%clk 0:02:58.5]} 6... fxe6 {[%clk 0:02:56.6]} 7.
Nc3 {[%clk 0:02:58.7]} 7... g6 {[%clk 0:02:55.5]} 8. h4 {[%clk 0:02:58.7]} 8...
Bg7 {[%clk 0:02:54.6]} 9. h5 {[%clk 0:02:58.9]} 9... e5 {[%clk 0:02:55]} 10.
dxe5 {[%clk 0:02:50]} 10... Nxe5 {[%clk 0:02:49.5]} 11. Nxe5 {[%clk 0:02:49.7]}
11... Bxe5 {[%clk 0:02:50.4]} 12. hxg6 {[%clk 0:02:47.7]} 12... hxg6 {[%clk
0:02:46.6]} 13. Rxh8+ {[%clk 0:02:47.6]} 13... Bxh8 {[%clk 0:02:47.5]} 14. Bd3
{[%clk 0:02:47.8]} 14... c6 {[%clk 0:02:16.6]} 15. Bxg6+ {[%clk 0:02:44.1]}
15... Kd7 {[%clk 0:02:17]} 16. c5 {[%clk 0:02:39.8]} 16... Qg8 {[%clk
0:01:11.7]} 17. Qh5 {[%clk 0:02:26.6]} 17... Bxc3+ {[%clk 0:01:04.7]} 18. bxc3
{[%clk 0:02:23.6]} 18... Nd5 {[%clk 0:01:05.6]} 19. Bd2 {[%clk 0:02:13.9]} 19...
Nf6 {[%clk 0:00:52.8]} 20. Qh6 {[%clk 0:02:09.7]} 20... Qe6+ {[%clk 0:00:39.8]}
21. Be3 {[%clk 0:01:57.3]} 21... Ng4 {[%clk 0:00:34.7]} 22. Qg5 {[%clk 0:01:57]}
22... Nxe3 {[%clk 0:00:34.9]} 23. fxe3 {[%clk 0:01:56.7]} 23... Kc7 {[%clk
0:00:32]} 24. Rd1 {[%clk 0:01:42.3]} 24... b6 {[%clk 0:00:32.1]} 25. Bf5 {[%clk
0:01:19.7]} 25... Qxf5 {[%clk 0:00:29.1]} 26. Qxe7+ {[%clk 0:01:19.3]} 26... Bd7
{[%clk 0:00:20.7]} 27. Qxd6+ {[%clk 0:01:14]} 27... Kc8 {[%clk 0:00:16.5]} 28.
Rd4 {[%clk 0:01:14]} 28... bxc5 {[%clk 0:00:12.6]} 29. Rf4 {[%clk 0:01:11.5]}
29... Qe6 {[%clk 0:00:12.5]} 30. Qxc5 {[%clk 0:01:03.4]} 30... Kc7 {[%clk
0:00:12]} 31. Qa5+ {[%clk 0:01:02.2]} 31... Kc8 {[%clk 0:00:06.2]} 32. Rf8+
{[%clk 0:00:59.5]} 32... Be8 {[%clk 0:00:06.5]} 33. Kf2 {[%clk 0:00:48.7]} 33...
Rb8 {[%clk 0:00:07]} 34. Qa6+ {[%clk 0:00:42.7]} 34... Kd8 {[%clk 0:00:06.5]}
35. Qa5+ {[%clk 0:00:35.3]} 35... Ke7 {[%clk 0:00:06.9]} 36. Qc5+ {[%clk
0:00:32.3]} 36... Qd6 {[%clk 0:00:07.2]} 37. Qf5 {[%clk 0:00:31.4]} 37... Rb2+
{[%clk 0:00:07]} 38. Kg1 {[%clk 0:00:28.9]} 38... Qd1+ {[%clk 0:00:06.6]} 39.
Kh2 {[%clk 0:00:27.6]} 39... Qd6+ {[%clk 0:00:07.5]} 40. Kg1 {[%clk 0:00:23.3]}
40... Qd1+ {[%clk 0:00:07.9]} 41. Kh2 {[%clk 0:00:22.1]} 41... Qd6+ {[%clk
0:00:08.2]} 42. Kg1 {[%clk 0:00:17.3]} 1/2-1/2

[Event "Early-Titled-Tuesday-Blitz-July-09-2024"]
[Site "Chess.com"]
[Date "2024.07.09"]
[Round "9"]
[White "Tagir45"]
[Black "esrosenberg"]
[Result "1-0"]
[WhiteElo "2619"]
[BlackElo "2324"]
[TimeControl "180+1"]
[EndTime "9:45:56 PDT"]
[Termination "Tagir45 won by resignation"]

1. d4 {[%clk 0:02:11.6]} 1... d5 {[%clk 0:02:59.4]} 2. c4 {[%clk 0:02:07.3]}
2... e6 {[%clk 0:02:59.2]} 3. Nf3 {[%clk 0:02:07.4]} 3... a6 {[%clk 0:02:58.2]}
4. cxd5 {[%clk 0:02:06.3]} 4... exd5 {[%clk 0:02:58.2]} 5. Nc3 {[%clk
0:02:07.2]} 5... c6 {[%clk 0:02:58.6]} 6. Bf4 {[%clk 0:02:07]} 6... Bd6 {[%clk
0:02:58.4]} 7. Bxd6 {[%clk 0:02:07.5]} 7... Qxd6 {[%clk 0:02:58.5]} 8. e3 {[%clk
0:02:08.4]} 8... Ne7 {[%clk 0:02:54.3]} 9. Bd3 {[%clk 0:02:09.3]} 9... O-O
{[%clk 0:02:52.1]} 10. O-O {[%clk 0:02:09.3]} 10... Bf5 {[%clk 0:02:41]} 11. Be2
{[%clk 0:02:07.4]} 11... Nd7 {[%clk 0:02:35.5]} 12. a3 {[%clk 0:02:02.5]} 12...
Qh6 {[%clk 0:02:21.5]} 13. b4 {[%clk 0:02:01.2]} 13... Rae8 {[%clk 0:02:17.9]}
14. a4 {[%clk 0:01:59.3]} 14... Nc8 {[%clk 0:02:07]} 15. b5 {[%clk 0:01:58.2]}
15... axb5 {[%clk 0:02:06.4]} 16. axb5 {[%clk 0:01:57.8]} 16... Nd6 {[%clk
0:02:07]} 17. bxc6 {[%clk 0:01:56.2]} 17... bxc6 {[%clk 0:02:07.9]} 18. Ra6
{[%clk 0:01:56.1]} 18... Ne4 {[%clk 0:02:07.4]} 19. Qc1 {[%clk 0:01:12.4]} 19...
Re6 {[%clk 0:01:57.9]} 20. Nxe4 {[%clk 0:01:03.1]} 20... Bxe4 {[%clk 0:01:56.6]}
21. Nd2 {[%clk 0:01:02.2]} 21... Bxg2 {[%clk 0:01:52.8]} 22. Kxg2 {[%clk
0:00:57.1]} 22... Rg6+ {[%clk 0:01:37.2]} 23. Kh1 {[%clk 0:00:56]} 23... Qh3
{[%clk 0:01:37.8]} 24. Rg1 {[%clk 0:00:54.1]} 24... Rh6 {[%clk 0:01:30.3]} 25.
Nf3 {[%clk 0:00:50.2]} 25... Nf6 {[%clk 0:01:24.6]} 26. Rg3 {[%clk 0:00:42.3]}
26... Qh5 {[%clk 0:01:20.7]} 27. Rg5 {[%clk 0:00:35]} 27... Qh3 {[%clk 0:01:15]}
28. Qf1 {[%clk 0:00:33.5]} 28... Qc8 {[%clk 0:01:06.3]} 29. Bd3 {[%clk
0:00:25.9]} 29... Ne4 {[%clk 0:01:05.7]} 30. Bxe4 {[%clk 0:00:24.9]} 30... dxe4
{[%clk 0:01:05.4]} 31. Nd2 {[%clk 0:00:23.9]} 31... f5 {[%clk 0:00:56.3]} 32.
Ra7 {[%clk 0:00:21.3]} 32... Rxh2+ {[%clk 0:00:42.3]} 33. Kg1 {[%clk 0:00:19.8]}
33... Rh6 {[%clk 0:00:36.3]} 34. Raxg7+ {[%clk 0:00:16.4]} 34... Kh8 {[%clk
0:00:37]} 35. Qg2 {[%clk 0:00:16.3]} 35... f4 {[%clk 0:00:32.1]} 36. exf4 {[%clk
0:00:14.7]} 36... Qe8 {[%clk 0:00:23.6]} 37. Nxe4 {[%clk 0:00:13.6]} 37... c5
{[%clk 0:00:17.6]} 38. dxc5 {[%clk 0:00:08.9]} 38... Qd8 {[%clk 0:00:16.5]} 39.
Nd6 {[%clk 0:00:07.8]} 39... Rxd6 {[%clk 0:00:11.8]} 40. cxd6 {[%clk 0:00:07.1]}
1-0

[Event "Early-Titled-Tuesday-Blitz-July-09-2024"]
[Site "Chess.com"]
[Date "2024.07.09"]
[Round "9"]
[White "anderson2361"]
[Black "chess_blitz00"]
[Result "0-1"]
[WhiteElo "2243"]
[BlackElo "2524"]
[TimeControl "180+1"]
[EndTime "9:45:58 PDT"]
[Termination "chess_blitz00 won by resignation"]

1. c4 {[%clk 0:03:00.9]} 1... d6 {[%clk 0:02:07.5]} 2. Nc3 {[%clk 0:02:09]} 2...
e5 {[%clk 0:02:07.2]} 3. e4 {[%clk 0:02:08]} 3... Nc6 {[%clk 0:02:06.8]} 4. Nf3
{[%clk 0:02:07.8]} 4... Bg4 {[%clk 0:02:05.2]} 5. Be2 {[%clk 0:02:06.1]} 5...
Nge7 {[%clk 0:01:53.5]} 6. d3 {[%clk 0:02:03]} 6... Bxf3 {[%clk 0:01:53]} 7.
Bxf3 {[%clk 0:02:01.9]} 7... Nd4 {[%clk 0:01:53.7]} 8. O-O {[%clk 0:01:58.4]}
8... Nec6 {[%clk 0:01:53.6]} 9. a3 {[%clk 0:01:56.7]} 9... Be7 {[%clk
0:01:52.2]} 10. b4 {[%clk 0:01:55.9]} 10... a5 {[%clk 0:01:49.6]} 11. b5 {[%clk
0:01:55.1]} 11... Nxf3+ {[%clk 0:01:50.2]} 12. Qxf3 {[%clk 0:01:51.8]} 12... Nd4
{[%clk 0:01:51.1]} 13. Qd1 {[%clk 0:01:52.2]} 13... c6 {[%clk 0:01:50]} 14. Be3
{[%clk 0:01:48.7]} 14... Ne6 {[%clk 0:01:49.8]} 15. g3 {[%clk 0:01:43.3]} 15...
O-O {[%clk 0:01:45.3]} 16. f4 {[%clk 0:01:42.8]} 16... exf4 {[%clk 0:01:42.1]}
17. gxf4 {[%clk 0:01:42.5]} 17... Bf6 {[%clk 0:01:40.2]} 18. Rc1 {[%clk
0:01:36.8]} 18... Bd4 {[%clk 0:01:36.5]} 19. Qd2 {[%clk 0:01:32.7]} 19... Qb6
{[%clk 0:01:29.8]} 20. Rce1 {[%clk 0:01:21.1]} 20... f5 {[%clk 0:01:23.8]} 21.
Na4 {[%clk 0:01:07.9]} 21... Bxe3+ {[%clk 0:01:21.6]} 22. Qxe3 {[%clk
0:01:03.2]} 22... Qxe3+ {[%clk 0:01:19.1]} 23. Rxe3 {[%clk 0:01:04.1]} 23...
fxe4 {[%clk 0:01:09.8]} 24. Rxe4 {[%clk 0:01:01.9]} 24... Rf6 {[%clk 0:01:10.2]}
25. f5 {[%clk 0:00:56.4]} 25... Nc5 {[%clk 0:01:02.2]} 26. Nxc5 {[%clk
0:00:54.2]} 26... dxc5 {[%clk 0:01:03.1]} 27. bxc6 {[%clk 0:00:43.7]} 27... Rxc6
{[%clk 0:00:59.8]} 28. Rb1 {[%clk 0:00:40.9]} 28... b6 {[%clk 0:00:54.4]} 29.
Re7 {[%clk 0:00:21.2]} 29... Rd8 {[%clk 0:00:46.9]} 30. Rb3 {[%clk 0:00:18.9]}
30... a4 {[%clk 0:00:39.7]} 31. Rc3 {[%clk 0:00:17.6]} 31... Rcd6 {[%clk
0:00:40.2]} 32. Re3 {[%clk 0:00:15.5]} 32... Rf8 {[%clk 0:00:38.8]} 33. Rf3
{[%clk 0:00:14.3]} 33... g6 {[%clk 0:00:36.5]} 34. Rc2 {[%clk 0:00:12]} 34...
Rxf5 {[%clk 0:00:36.3]} 35. Re3 {[%clk 0:00:11.5]} 35... Rf7 {[%clk 0:00:31.2]}
36. Rb2 {[%clk 0:00:11.6]} 36... Rfd7 {[%clk 0:00:31.1]} 37. Re8+ {[%clk
0:00:10.2]} 37... Kf7 {[%clk 0:00:28.8]} 38. Rh8 {[%clk 0:00:10.7]} 38... Kg7
{[%clk 0:00:20.1]} 39. Rb8 {[%clk 0:00:10.1]} 39... Rxd3 {[%clk 0:00:20.5]} 40.
R8xb6 {[%clk 0:00:09.3]} 40... Rxa3 {[%clk 0:00:20.6]} 41. Rc6 {[%clk
0:00:09.3]} 41... Rb3 {[%clk 0:00:16.7]} 42. Ra2 {[%clk 0:00:07.8]} 42... a3
{[%clk 0:00:15.7]} 43. Rxc5 {[%clk 0:00:08.2]} 43... Rb2 {[%clk 0:00:15]} 44.
Rxb2 {[%clk 0:00:02]} 44... axb2 {[%clk 0:00:15.9]} 45. Rb5 {[%clk 0:00:02.2]}
45... Rd1+ {[%clk 0:00:15.9]} 0-1

[Event "Early-Titled-Tuesday-Blitz-July-09-2024"]
[Site "Chess.com"]
[Date "2024.07.09"]
[Round "9"]
[White "Gyulamiryan-koryun"]
[Black "amylazy"]
[Result "1-0"]
[WhiteElo "1918"]
[BlackElo "2489"]
[TimeControl "180+1"]
[EndTime "9:45:59 PDT"]
[Termination "Gyulamiryan-koryun won by checkmate"]

1. d4 {[%clk 0:03:00.9]} 1... Nf6 {[%clk 0:02:59.6]} 2. c4 {[%clk 0:02:58.9]}
2... g6 {[%clk 0:02:59.4]} 3. Nc3 {[%clk 0:02:58.2]} 3... d5 {[%clk 0:02:59.5]}
4. h4 {[%clk 0:02:57]} 4... h6 {[%clk 0:02:58.9]} 5. cxd5 {[%clk 0:02:52.8]}
5... Nxd5 {[%clk 0:02:58.7]} 6. h5 {[%clk 0:02:52]} 6... g5 {[%clk 0:02:58.2]}
7. e4 {[%clk 0:02:41.2]} 7... Nxc3 {[%clk 0:02:57.8]} 8. bxc3 {[%clk 0:02:41.5]}
8... Bg7 {[%clk 0:02:58.7]} 9. Be3 {[%clk 0:02:37]} 9... c5 {[%clk 0:02:57.8]}
10. Bb5+ {[%clk 0:02:27.3]} 10... Bd7 {[%clk 0:02:56.9]} 11. Bxd7+ {[%clk
0:02:17.3]} 11... Nxd7 {[%clk 0:02:56.4]} 12. Ne2 {[%clk 0:02:17.3]} 12... O-O
{[%clk 0:02:55.6]} 13. Qd2 {[%clk 0:02:16.2]} 13... Rc8 {[%clk 0:02:55.2]} 14.
f4 {[%clk 0:02:14.7]} 14... cxd4 {[%clk 0:02:55]} 15. cxd4 {[%clk 0:02:12.4]}
15... Nf6 {[%clk 0:02:55.1]} 16. Qd3 {[%clk 0:01:39.5]} 16... Ng4 {[%clk
0:02:25.7]} 17. fxg5 {[%clk 0:01:29.8]} 17... Nxe3 {[%clk 0:02:25.2]} 18. Qxe3
{[%clk 0:01:29.2]} 18... Qa5+ {[%clk 0:02:25.2]} 19. Kf2 {[%clk 0:01:22.7]}
19... hxg5 {[%clk 0:02:21.1]} 20. h6 {[%clk 0:01:22.6]} 20... Bf6 {[%clk
0:02:21.1]} 21. e5 {[%clk 0:01:21.1]} 21... Rfe8 {[%clk 0:02:14.1]} 22. Rh5
{[%clk 0:01:00.8]} 22... Kh8 {[%clk 0:02:12.6]} 23. Rf1 {[%clk 0:00:42.9]} 23...
g4 {[%clk 0:01:56.9]} 24. Qf4 {[%clk 0:00:31.3]} 24... Rc2 {[%clk 0:01:52.8]}
25. Qxg4 {[%clk 0:00:23.4]} 25... Rg8 {[%clk 0:01:51.5]} 26. Qe4 {[%clk
0:00:16.1]} 26... Rxa2 {[%clk 0:01:37.1]} 27. Kg1 {[%clk 0:00:12.2]} 27... Ra1
{[%clk 0:01:24.8]} 28. Rf5 {[%clk 0:00:11.7]} 28... Rxf1+ {[%clk 0:01:24.2]} 29.
Kxf1 {[%clk 0:00:10.8]} 29... Rc8 {[%clk 0:00:43.2]} 30. exf6 {[%clk 0:00:10.3]}
30... Qa1+ {[%clk 0:00:35]} 31. Kf2 {[%clk 0:00:10.7]} 31... e6 {[%clk
0:00:34.6]} 32. Rf3 {[%clk 0:00:09.1]} 32... Rg8 {[%clk 0:00:21.5]} 33. Rg3
{[%clk 0:00:08]} 33... Rxg3 {[%clk 0:00:21.1]} 34. Kxg3 {[%clk 0:00:08.3]} 34...
Qb2 {[%clk 0:00:21]} 35. Qg4 {[%clk 0:00:07.4]} 35... Qa3+ {[%clk 0:00:17.4]}
36. Kh2 {[%clk 0:00:05.7]} 36... Qd6+ {[%clk 0:00:17.9]} 37. Kh3 {[%clk
0:00:05.4]} 37... Qa3+ {[%clk 0:00:16.9]} 38. Ng3 {[%clk 0:00:05.5]} 38... Qf8
{[%clk 0:00:17]} 39. Qg7+ {[%clk 0:00:04.8]} 39... Qxg7 {[%clk 0:00:17.5]} 40.
fxg7+ {[%clk 0:00:05.3]} 40... Kg8 {[%clk 0:00:18.4]} 41. Kg4 {[%clk 0:00:05.8]}
41... f6 {[%clk 0:00:18.5]} 42. Kh5 {[%clk 0:00:06.1]} 42... Kh7 {[%clk
0:00:19.2]} 43. Ne4 {[%clk 0:00:06.1]} 43... f5 {[%clk 0:00:18.6]} 44. Nf6#
{[%clk 0:00:06.5]} 1-0